bitfinex-derivatives/quotes_ETHF0:USTF0_20250816
["timestamp","ask_amount","ask_price","bid_price","bid_amount"]
[1755322373528,1.40161234,4436.9,4436.8,1.4682]
[1755322373725,1.66221234,4436.9,4436.8,1.4682]
[1755322374330,0.14671234,4436.9,4436.8,1.2125]
[1755322374627,3.2078,4437.2,4437.1,0.5824]
[1755322374932,3.61519433,4437.2,4437.1,22.0732]
[1755322375234,3.96599433,4437.2,4437.1,22.0732]
[1755322375530,4.87009433,4437.2,4437.1,22.0732]
[1755322376326,0.2606,4437.1,4436.6,0.6301]
[1755322376531,4.7233,4436.7,4436.6,0.6301]
[1755322376726,4.7233,4436.7,4436.6,22.0722]
[1755322377230,3.2078,4437.2,4436.6,21.4421]
[1755322377432,0.75824572,4437.1,4437.0,1.4682]
[1755322377633,0.75824572,4437.1,4437.0,22.0722]
[1755322379029,3.2078,4437.2,4437.0,22.0722]
[1755322379231,3.4672,4437.2,4437.1,1.2125]
[1755322379527,3.818,4437.2,4437.1,20.603]
[1755322379727,3.818,4437.2,4437.1,21.4055]
[1755322380032,4.7233,4437.2,4437.1,21.655]
[1755322381635,4.7233,4437.2,4437.1,22.0712]
[1755322381832,4.7233,4437.2,4437.1,21.8155]
[1755322382032,4.7233,4437.2,4437.1,21.655]
[1755322383136,4.7233,4437.2,4437.1,22.0712]
[1755322383337,4.0786,4437.2,4437.1,22.0712]
[1755322384036,3.2078,4437.2,4437.1,22.0712]
[1755322384232,3.2078,4437.2,4437.1,23.52039383]
[1755322384432,3.8192,4437.7,4437.6,0.3367]
[1755322384631,3.9659628,4437.7,4437.6,22.0702]
[1755322384839,3.2078,4437.7,4437.6,22.0702]
[1755322385138,3.8192,4437.7,4437.6,22.0702]
[1755322386334,4.4639,4437.7,4437.6,22.0702]
[1755322387035,4.7233,4437.7,4437.6,22.0702]
[1755322389337,4.7233,4437.7,4437.6,1.2125]
[1755322389529,4.7233,4437.7,4437.6,21.8125]
[1755322391240,4.7233,4437.7,4437.3,0.2557]
[1755322391538,0.6102,4436.9,4436.8,1.4682]
[1755322391737,1.5155,4436.9,4436.8,1.4682]
[1755322391936,1.5155,4436.9,4436.8,22.0672]
[1755322394536,1.2591,4436.6,4436.2,0.69997]
[1755322394840,4.7233,4436.6,4436.5,53.6821]
[1755322395040,4.7233,4436.6,4436.5,53.052]
[1755322395540,4.7233,4436.6,4436.5,53.9378]
[1755322396836,4.7233,4436.6,4435.8,0.2495]
[1755322396837,0.9053,4436.5,4435.8,0.2495]
[1755322397036,0.6102,4435.7,4435.6,3.6297]
[1755322397239,1.5155,4435.7,4435.6,21.0209]
[1755322397742,1.5155,4435.2,4435.1,1.2125]
[1755322398041,1.5155,4435.2,4435.1,21.4015]
[1755322398339,1.5155,4435.2,4435.1,22.0672]
[1755322399737,0.8623,4435.8,4435.1,22.0672]
[1755322399938,3.5726,4435.9,4435.8,1.034]
[1755322400244,3.5726,4435.9,4435.8,22.0493]
[1755322400245,3.7387,4435.9,4435.8,22.0493]
[1755322400445,3.994,4435.9,4435.8,22.0493]
[1755322400640,4.4013,4435.9,4435.8,22.0493]
[1755322401336,3.2078,4435.9,4435.8,22.0493]
[1755322402036,3.7943,4435.9,4435.8,22.0493]
[1755322402232,4.6455,4435.9,4435.8,22.0493]
[1755322405650,4.0385,4435.9,4435.8,22.0493]
[1755322406151,4.6455,4435.9,4435.8,22.0493]
[1755322407148,3.2078,4435.9,4435.8,22.0493]
[1755322407352,0.5865,4436.2,4436.1,0.5785]
[1755322407553,0.5865,4436.2,4436.1,22.0503]
[1755322407954,3.4631,4436.4,4436.2,0.8688]
[1755322408153,3.4631,4436.4,4436.3,22.0503]
[1755322408553,3.2078,4436.4,4436.3,23.49949383]
[1755322409956,3.6282,4436.4,4436.3,22.0503]
[1755322410154,3.7943,4436.4,4436.3,22.0503]
[1755322412956,0.5865,4436.4,4436.3,22.0503]
[1755322414456,0.5865,4436.4,4436.3,1.4473]
[1755322414659,1.4377,4436.4,4436.3,22.0493]
[1755322415559,1.4377,4436.4,4436.3,0.4158]
[1755322415755,1.4377,4436.4,4436.3,21.0178]
[1755322415961,1.4377,4436.4,4436.3,21.636]
[1755322416259,1.4377,4436.4,4436.3,22.0493]
[1755322418563,0.8307,4436.4,4436.3,22.0493]
[1755322418759,3.2078,4436.5,4436.3,22.0493]
[1755322418964,0.2553,4436.8,4436.4,1.4473]
[1755322419160,0.9382,4436.8,4436.7,0.5785]
[1755322419360,1.1824,4436.8,4436.7,22.0483]
[1755322419863,1.4377,4436.8,4436.7,22.0483]
[1755322422263,1.1935,4436.8,4436.7,22.0483]
[1755322422464,1.4377,4436.8,4436.7,22.0483]
[1755322422856,0.5865,4436.8,4436.7,22.0483]
[1755322423056,1.4377,4436.8,4436.7,21.635]
[1755322423255,1.4377,4436.8,4436.7,22.0483]
[1755322423561,1.4377,4436.8,4436.7,1.4473]
[1755322423757,1.1824,4436.0,4435.4,0.6182]
[1755322423962,1.4377,4435.5,4435.4,1.034]
[1755322424161,1.4377,4435.5,4435.4,22.0473]
[1755322424464,0.5865,4435.5,4435.4,22.0473]
[1755322424667,0.5865,4435.5,4435.4,23.49649383]
[1755322424868,3.2078,4435.8,4435.7,0.5785]
[1755322425068,3.2078,4435.8,4435.7,23.49649383]
[1755322425267,0.2553,4436.0,4435.7,22.62769383]
[1755322425459,0.2553,4436.0,4435.9,0.5785]
[1755322425663,0.2553,4436.0,4435.9,22.0473]
[1755322426059,3.2078,4436.4,4435.9,22.0473]
[1755322426266,3.2078,4436.4,4436.2,1.4473]
[1755322426466,3.7943,4436.4,4436.3,22.0473]
[1755322426868,4.4033,4436.4,4436.3,22.0473]
[1755322427068,4.6455,4436.4,4436.3,22.0473]
[1755322428767,4.6455,4436.4,4436.3,21.7967]
[1755322429266,4.79239468,4436.4,4436.3,21.7967]
[1755322429466,4.79239468,4436.4,4436.3,22.0358]
[1755322429770,3.7943,4436.4,4436.3,22.0358]
[1755322430069,4.0444,4436.9,4436.8,0.5906]
[1755322430264,4.79669245,4436.9,4436.8,22.0762]
[1755322433772,3.35469245,4436.9,4436.8,22.0762]
[1755322434177,3.60779245,4436.9,4436.8,22.0762]
[1755322434573,3.77149245,4436.9,4436.8,22.0762]
[1755322434874,3.93829245,4436.9,4436.8,22.0762]
[1755322435073,4.79669245,4436.9,4436.8,22.0762]
[1755322441769,4.19129245,4436.9,4436.8,22.0762]
[1755322442075,3.2078,4436.9,4436.8,22.0762]
[1755322442375,0.2531,4436.9,4436.8,23.97580383]
[1755322447671,4.0336,4437.4,4437.3,0.5906]
[1755322447877,4.54360235,4437.4,4437.3,22.0702]
[1755322448076,0.8258,4436.6,4436.5,1.0682]
[1755322448376,0.8258,4436.6,4436.5,21.6612]
[1755322448377,1.442,4436.6,4436.5,21.6612]
[1755322448779,1.442,4436.6,4436.5,22.0692]
[1755322449477,1.442,4436.6,4436.5,21.8301]
[1755322449669,1.442,4436.6,4436.5,1.2371]
[1755322449875,0.5835,4436.2,4436.1,0.8135]
[1755322450076,1.442,4436.2,4436.1,21.6612]
[1755322450276,1.442,4436.2,4436.1,22.0692]
[1755322450477,0.5836,4436.2,4436.1,22.0692]
[1755322451175,0.1637,4436.2,4436.1,22.0692]
[1755322451479,3.2078,4436.9,4436.4,0.5906]
[1755322451778,3.2078,4436.9,4436.5,23.96882383]
[1755322451779,0.6054,4436.8,4436.5,23.96882383]
[1755322451979,0.9359,4436.8,4436.7,0.5906]
[1755322452181,0.9359,4436.8,4436.7,22.0682]
[1755322452477,1.1889,4436.8,4436.7,21.0137]
[1755322452677,1.442,4436.8,4436.7,21.0137]
[1755322453079,1.442,4436.8,4436.7,22.0682]
[1755322453880,1.442,4436.8,4436.7,1.4762]
[1755322454074,1.442,4436.8,4436.7,21.8291]
[1755322454479,1.442,4436.8,4436.7,22.0682]
[1755322454978,1.442,4436.8,4436.7,1.4762]
[1755322455183,1.442,4436.8,4436.7,21.6602]
[1755322457087,1.442,4436.8,4436.7,22.0682]
[1755322457982,1.442,4436.8,4436.7,1.4762]
[1755322458286,1.58795615,4436.8,4436.7,22.0672]
[1755322458478,1.442,4436.8,4436.7,22.0672]
[1755322458679,1.58795501,4436.8,4436.7,22.0672]
[1755322459085,1.442,4436.8,4436.7,22.0672]
[1755322459286,1.58798644,4436.8,4436.7,22.0672]
[1755322459785,0.14598644,4436.8,4436.7,22.0672]
[1755322459980,0.26,4436.8,4436.7,22.0672]
[1755322460481,3.2078,4436.9,4436.8,0.3725]
[1755322460687,3.2078,4436.9,4436.8,2.89869383]
[1755322461991,3.4678,4436.9,4436.8,2.89869383]
[1755322462388,3.2078,4436.9,4436.8,1.4495]
[1755322462588,3.6404,4436.9,4436.8,2.89869383]
[1755322463182,0.4326,4436.9,4436.8,2.89869383]
[1755322463983,0.8886,4437.3,4436.8,2.47700383]
[1755322464185,0.9715,4437.0,4436.9,22.0395]
[1755322464385,1.11749256,4437.0,4436.9,22.0395]
[1755322464883,0.14599256,4437.0,4436.9,22.0395]
[1755322465786,0.40599256,4437.0,4436.9,22.0395]
[1755322466491,0.2604,4437.3,4436.9,21.7907]
[1755322466691,0.9709,4437.0,4436.9,21.7907]
[1755322466893,1.63729153,4437.0,4436.9,22.0395]
[1755322469190,1.63729153,4437.0,4436.9,1.4495]
[1755322469384,1.63729153,4437.0,4436.9,22.0375]
[1755322469888,1.63729153,4437.0,4436.9,21.0006]
[1755322470191,1.63729153,4437.0,4436.9,0.4126]
[1755322470491,1.63729153,4437.0,4436.9,21.0006]
[1755322470690,1.63738863,4437.0,4436.9,21.0006]
[1755322471593,1.63738863,4437.0,4436.9,22.0375]
[1755322471895,1.63738863,4437.0,4436.9,21.6239]
[1755322472089,1.63738863,4437.0,4436.9,21.0006]
[1755322472592,1.63738863,4437.0,4436.9,21.6239]
[1755322472890,1.63738863,4437.0,4436.9,22.0375]
[1755322473192,0.6033,4437.0,4436.9,1.4495]
[1755322473388,0.6033,4437.0,4436.9,22.0365]
[1755322473694,0.6033,4437.3,4437.2,1.4495]
[1755322473996,0.74941549,4437.3,4437.2,23.48569383]
[1755322474492,1.37801549,4437.3,4437.2,23.48569383]
[1755322475087,1.63741549,4437.3,4437.2,23.48569383]
[1755322477598,0.8886,4437.7,4437.2,3.34906383]
[1755322477793,0.74878432,4437.6,4437.5,0.5774]
[1755322477998,0.74878432,4437.6,4437.5,22.0345]
[1755322478399,1.63738432,4437.6,4437.5,22.0345]
[1755322478598,1.63738432,4437.6,4437.5,23.48369383]
[1755322479891,1.4913,4437.6,4437.5,23.48369383]
[1755322483803,0.6027,4437.1,4437.0,1.02779]
[1755322484111,1.4913,4437.1,4437.0,22.48189]
[1755322486506,0.8627,4437.5,4437.4,0.5774]
[1755322486808,0.8627,4437.5,4437.4,22.0305]
[1755322487103,1.4913,4437.5,4437.4,22.0305]
[1755322493708,0.8627,4437.5,4437.4,22.0305]
[1755322494306,1.4719,4437.5,4437.4,22.0305]
[1755322500406,0.339,4436.8,4436.5,33.1097]
[1755322500610,1.4449,4436.6,4436.5,33.1097]
[1755322500909,1.4449,4436.6,4436.5,53.6847]
[1755322501211,1.4449,4436.6,4436.5,34.55889383]
[1755322501407,1.4449,4436.6,4436.5,55.38189383]
[1755322502911,0.2479,4437.3,4437.2,0.4185]
[1755322503210,1.1961,4437.3,4437.2,23.51599383]
[1755322503513,0.5869,4437.3,4437.2,23.51599383]
[1755322503813,3.4557,4437.9,4437.8,1.4918]
[1755322504010,3.7947,4437.9,4437.8,23.51499383]
[1755322504206,4.6527,4437.9,4437.8,23.51499383]
[1755322504709,3.2078,4437.9,4437.8,23.51499383]
[1755322505607,3.7947,4437.9,4437.8,23.51499383]
[1755322505811,4.6527,4437.9,4437.8,2.94099383]
[1755322506009,4.6527,4437.9,4437.8,20.574]
[1755322506209,0.339,4437.6,4437.5,1.61279383]
[1755322506410,1.4449,4437.6,4437.5,22.44169383]
[1755322506918,1.4449,4437.6,4437.5,23.09839383]
[1755322508214,0.8571,4437.5,4437.2,1.44919383]
[1755322508420,3.2078,4437.9,4437.2,0.812]
[1755322508421,1.4449,4437.3,4437.2,0.812]
[1755322508621,1.4449,4437.3,4437.2,21.6472]
[1755322509212,1.4449,4437.3,4437.2,21.8952]
[1755322509516,0.5869,4437.3,4437.2,22.0638]
[1755322510516,1.0748,4437.3,4437.2,22.0638]
[1755322510717,1.4449,4437.3,4437.2,22.0638]
[1755322512118,1.4449,4437.3,4437.2,1.4918]
[1755322512321,1.4449,4437.3,4437.2,22.0618]
[1755322512819,1.4449,4437.3,4437.2,1.4918]
[1755322513016,1.4449,4437.3,4437.1,0.45037]
[1755322513217,1.4449,4437.3,4437.2,23.09439383]
[1755322513411,1.4449,4437.3,4437.1,0.45037]
[1755322513412,1.4449,4437.3,4436.9,1.44919383]
[1755322513618,0.8571,4437.2,4437.0,20.57]
[1755322513815,1.4449,4437.1,4437.0,20.9635]
[1755322514015,1.4449,4437.1,4437.0,21.382]
[1755322514215,1.4449,4437.1,4437.0,21.6452]
[1755322514925,0.5878,4436.4,4436.3,0.45045]
[1755322515120,1.4449,4436.4,4436.3,21.01945]
[1755322515615,1.4449,4436.4,4436.3,20.569]
[1755322515816,0.5878,4436.2,4436.1,1.89967383]
[1755322516111,1.4449,4436.2,4436.1,23.54387383]
[1755322516316,1.4449,4436.2,4436.1,23.71247383]
[1755322516515,1.4449,4436.2,4436.1,23.96047383]
[1755322517120,1.4449,4436.2,4436.1,23.09339383]
[1755322517320,1.4449,4436.2,4436.1,23.50999383]
[1755322517522,1.4449,4436.2,4436.1,23.26199383]
[1755322517724,1.4449,4436.2,4436.1,23.09339383]
[1755322518117,1.4449,4436.2,4436.1,2.52439383]
[1755322518318,1.4449,4436.2,4436.1,22.83019383]
[1755322518922,1.4449,4436.2,4436.1,2.26119383]
[1755322519123,1.4449,4436.2,4436.1,22.43669383]
[1755322519524,1.4449,4436.2,4436.1,23.06749383]
[1755322520525,1.4449,4436.2,4436.1,23.49309383]
[1755322522622,1.4449,4436.2,4436.1,23.23859383]
[1755322522823,1.4449,4436.2,4436.1,20.569]
[1755322523017,0.5878,4436.2,4436.1,20.571]
[1755322523718,1.4768,4436.2,4436.1,20.571]
[1755322523915,1.4768,4436.2,4436.1,21.133]
[1755322524115,1.4768,4436.2,4436.1,20.7451]
[1755322524315,1.4768,4436.2,4436.1,20.571]
[1755322524725,1.4768,4436.2,4436.1,21.6334]
[1755322525821,1.4768,4436.2,4436.1,21.0026]
[1755322529028,1.4768,4436.2,4436.1,21.6334]
[1755322529724,1.4768,4436.2,4436.1,21.8879]
[1755322529925,1.4768,4436.2,4436.1,22.059]
[1755322530532,1.4768,4436.2,4436.1,23.50819383]
[1755322532134,3.2078,4436.4,4436.1,23.25369383]
[1755322532336,4.1755,4436.4,4436.3,0.6027]
[1755322532527,4.4201,4436.4,4436.3,22.058]
[1755322533022,4.6733,4436.4,4436.3,21.8035]
[1755322534133,4.6733,4436.4,4436.3,20.57]
[1755322536138,4.6733,4436.4,4436.3,21.3749]
[1755322537037,4.6733,4436.4,4436.3,1.0624]
[1755322537236,4.6733,4436.4,4436.3,21.6314]
[1755322539741,4.6733,4436.4,4436.3,21.0006]
[1755322540542,4.6733,4436.4,4436.3,21.6314]
[1755322541042,4.6733,4436.4,4436.3,21.8859]
[1755322541638,4.6733,4436.4,4436.3,21.6314]
[1755322541841,4.6733,4436.4,4436.3,21.0006]
[1755322542439,0.2532,4436.3,4435.5,32.445]
[1755322542640,0.17872776,4437.5,4434.9,4.065]
[1755322542641,1.4655,4435.0,4434.9,4.065]
[1755322542945,1.4655,4435.0,4434.9,21.4252]
[1755322543149,0.2532,4434.9,4434.3,0.6308]
[1755322543341,0.7221,4434.4,4434.3,1.488]
[1755322543537,0.5851,4434.4,4434.3,22.056]
[1755322544146,0.4261,4434.4,4434.3,22.056]
[1755322545953,0.4261,4434.4,4434.3,1.488]
[1755322546149,0.5851,4434.4,4434.3,22.055]
[1755322548747,0.4261,4434.4,4434.3,22.055]
[1755322549044,3.2078,4434.9,4434.3,21.1697]
[1755322549350,3.2078,4434.9,4434.8,2.93489383]
[1755322549548,3.2078,4434.9,4434.8,23.50289383]
[1755322549744,3.5417,4434.9,4434.8,2.93489383]
[1755322549944,4.7033,4434.9,4434.8,23.50389383]
[1755322551350,1.4955,4434.9,4434.8,23.50389383]
[1755322551650,4.7033,4434.9,4434.8,21.3672]
[1755322551841,4.7033,4434.9,4434.8,21.6243]
[1755322552851,4.7033,4434.9,4434.8,21.8885]
[1755322553053,4.7033,4434.9,4434.8,22.0547]
[1755322553253,4.7033,4434.9,4434.8,21.6243]
[1755322553654,4.0621,4434.9,4434.8,22.0547]
[1755322553849,4.4389,4434.9,4434.8,22.0547]
[1755322554049,4.7033,4434.9,4434.8,22.0547]
[1755322554551,0.5965,4434.9,4434.8,23.50389383]
[1755322555657,0.4302,4434.9,4434.8,22.0547]
[1755322555856,0.5965,4434.9,4434.8,23.50389383]
[1755322556256,1.2377,4434.9,4434.8,23.50389383]
[1755322556858,0.5965,4434.9,4434.8,23.50389383]
[1755322557757,0.5965,4434.9,4434.8,22.0547]
[1755322558257,1.2377,4434.9,4434.8,22.0547]
[1755322558858,1.4955,4434.9,4434.8,22.0547]
[1755322560455,1.4955,4434.9,4434.8,1.2215]
[1755322560659,1.4955,4434.6,4434.5,1.4857]
[1755322560858,0.1676,4434.6,4434.5,22.0537]
[1755322561058,0.9038,4434.9,4434.5,22.0537]
[1755322561259,0.2626,4434.8,4434.7,2.03999383]
[1755322561459,0.2626,4434.8,4434.7,22.60799383]
[1755322561860,0.2626,4434.8,4434.7,23.50289383]
[1755322563164,0.4302,4434.8,4434.7,23.50289383]
[1755322564364,0.5965,4434.8,4434.7,23.50289383]
[1755322564556,1.2377,4434.8,4434.7,23.50289383]
[1755322564759,1.4955,4434.8,4434.7,23.50289383]
[1755322566264,4.7033,4434.8,4434.7,23.50289383]
[1755322568867,4.7033,4434.8,4434.7,23.23869383]
[1755322569868,4.7033,4434.8,4434.7,20.568]
[1755322570160,4.7033,4434.8,4434.7,21.3691]
[1755322570360,4.7033,4434.8,4434.7,21.6233]
[1755322570756,4.7033,4434.8,4434.7,21.8875]
[1755322571169,4.7033,4434.8,4434.7,21.6233]
[1755322571367,4.7033,4434.8,4434.7,21.8875]
[1755322571569,4.0621,4434.8,4434.7,22.0537]
[1755322572569,4.7033,4434.8,4434.7,22.0537]
[1755322573270,4.85142695,4434.8,4434.7,22.0537]
[1755322573570,4.85142695,4434.8,4434.7,20.568]
[1755322573866,0.5917,4434.6,4434.5,0.4246]
[1755322574170,1.4955,4434.6,4434.5,20.9906]
[1755322574371,1.4955,4434.6,4434.5,0.4246]
[1755322574570,1.4955,4434.6,4434.5,20.8192]
[1755322574765,1.4955,4434.6,4434.5,22.0507]
[1755322574965,0.4302,4434.6,4434.5,23.49989383]
[1755322575161,3.2078,4434.8,4434.6,0.2571]
[1755322575368,3.2078,4434.8,4434.7,22.0507]
[1755322575761,4.1763,4435.7,4435.6,0.5908]
[1755322575968,4.8514643,4435.7,4435.6,21.7855]
[1755322576668,4.85143032,4435.7,4435.6,20.9886]
[1755322577169,4.85143032,4435.7,4435.6,21.6193]
[1755322577569,4.85143032,4435.7,4435.6,22.0497]
[1755322578573,4.85143032,4435.7,4435.6,21.7855]
[1755322579672,4.85143032,4435.7,4435.6,22.0255]
[1755322580070,4.85143032,4435.7,4435.6,20.9792]
[1755322580268,4.85143032,4435.7,4435.6,22.0074]
[1755322582374,4.21023032,4435.7,4435.6,22.0074]
[1755322582574,4.85333032,4435.7,4435.6,22.0074]
[1755322583268,4.42313032,4435.7,4435.6,22.0074]
[1755322583474,4.67683032,4435.7,4435.6,22.0074]
[1755322583669,3.78383032,4435.7,4435.6,22.0074]
[1755322583871,4.86203032,4435.7,4435.6,22.0074]
[1755322584673,3.95463032,4435.7,4435.6,23.45659383]
[1755322584873,3.35593032,4435.7,4435.6,23.45659383]
[1755322585272,3.2078,4435.7,4435.6,23.45659383]
[1755322585672,3.4615,4435.7,4435.6,23.45659383]
[1755322586276,4.0708,4435.7,4435.6,0.4152]
[1755322586480,4.7139,4435.7,4435.6,20.9742]
[1755322586974,4.7139,4435.7,4435.6,20.559]
[1755322587175,0.6093,4435.5,4435.4,0.6159]
[1755322587476,1.5061,4435.5,4435.4,21.1749]
[1755322588979,1.5061,4435.5,4435.4,20.559]
[1755322589175,2.95529383,4435.5,4435.4,20.559]
[1755322589578,3.10333882,4435.5,4435.4,20.559]
[1755322589778,3.10333882,4435.5,4434.9,0.6159]
[1755322589978,0.6093,4435.0,4434.6,0.24]
[1755322590284,1.5061,4434.8,4434.7,0.4152]
[1755322590483,1.5061,4434.8,4434.7,20.9732]
[1755322590677,1.5061,4434.8,4434.7,0.2551]
[1755322590877,0.863,4434.1,4433.7,3.4478]
[1755322591080,0.345,4433.5,4433.4,2.03669383]
[1755322591275,0.5987,4433.5,4433.4,21.1445]
[1755322591479,1.5061,4433.5,4433.4,21.1445]
[1755322591676,1.5061,4433.5,4433.4,20.9722]
[1755322591980,4.7139,4433.5,4433.4,20.9722]
[1755322592181,3.8171,4433.5,4433.4,20.558]
[1755322592581,3.8171,4433.5,4432.9,32.464]
[1755322592783,0.6093,4433.1,4433.0,20.558]
[1755322593086,1.5061,4433.1,4433.0,20.7181]
[1755322594185,1.5061,4433.1,4433.0,22.0014]
[1755322596185,1.5061,4433.1,4433.0,21.7614]
[1755322596480,0.6093,4432.8,4432.7,1.0311]
[1755322596788,1.5061,4432.8,4432.7,21.5901]
[1755322597287,0.2537,4432.7,4431.9,0.6159]
[1755322597581,1.5061,4432.0,4431.9,1.2034]
[1755322597786,1.5061,4432.0,4431.9,1.4434]
[1755322598386,0.5987,4432.0,4431.9,1.4434]
[1755322599087,1.2418,4432.0,4431.9,1.4434]
[1755322599790,1.5061,4432.0,4431.9,1.4434]
[1755322600684,1.5061,4432.0,4431.9,1.2034]
[1755322600885,1.5061,4432.0,4431.9,1.0311]
[1755322601082,1.5061,4432.0,4431.9,1.2034]
[1755322601284,1.5061,4432.0,4431.9,1.4434]
[1755322603290,0.863,4432.0,4431.9,1.4434]
[1755322603893,1.5061,4432.0,4431.9,1.4434]
[1755322604389,0.863,4432.0,4431.9,1.4434]
[1755322604891,0.5987,4432.3,4432.2,0.2551]
[1755322605091,0.5987,4432.3,4432.2,1.4434]
[1755322605588,1.5061,4432.3,4432.2,1.4434]
[1755322605983,1.5061,4432.3,4432.2,1.0311]
[1755322606486,0.6093,4431.2,4431.1,0.51675377]
[1755322606790,6.16309383,4431.2,4431.1,0.10155377]
[1755322607486,8.90939383,4431.2,4429.2,0.3631]
[1755322607687,4.3234,4430.6,4430.5,0.4152]
[1755322607888,4.7077,4430.6,4430.5,1.4434]
[1755322609390,4.6676,4430.6,4430.5,1.4599]
[1755322609582,3.6382,4430.6,4430.5,1.4599]
[1755322609786,3.464,4431.1,4430.6,0.8689]
[1755322609988,4.0485,4431.1,4431.0,0.5915]
[1755322610184,4.656,4431.1,4431.0,0.4157]
[1755322610391,0.3359,4430.5,4430.4,20.9797]
[1755322610593,1.4482,4430.5,4430.4,21.7771]
[1755322611086,1.4482,4430.5,4430.4,22.0244]
[1755322611588,3.2078,4430.6,4430.4,23.47359383]
[1755322611795,3.2078,4430.6,4430.5,1.4604]
[1755322612992,3.2078,4430.6,4430.5,2.90959383]
[1755322613684,3.464,4431.2,4430.5,2.04069383]
[1755322613889,0.6075,4431.1,4430.6,0.8689]
[1755322614192,1.192,4430.7,4430.6,1.4604]
[1755322614490,4.656,4430.7,4430.6,1.0373]
[1755322615191,0.8637,4430.6,4430.0,0.6216]
[1755322615391,1.4482,4430.1,4430.0,1.2131]
[1755322615587,1.4482,4430.1,4430.0,21.7821]
[1755322615791,1.4482,4430.1,4430.0,22.0294]
[1755322616385,4.0485,4430.7,4430.6,0.5915]
[1755322616586,4.656,4430.7,4430.6,1.4604]
[1755322616794,4.656,4430.7,4430.6,1.2131]
[1755322616997,4.656,4430.7,4430.6,0.2447]
[1755322617289,0.8637,4430.6,4430.4,0.3686]
[1755322617486,1.4482,4430.5,4430.4,0.7843]
[1755322617990,0.5845,4430.4,4430.3,0.5915]
[1755322618195,0.5845,4430.4,4430.3,0.9601]
[1755322618391,0.5845,4430.4,4430.3,1.4604]
[1755322618592,1.4482,4430.4,4430.3,1.4604]
[1755322619189,3.7999,4430.7,4430.6,0.5915]
[1755322619493,4.4074,4430.7,4430.6,1.4604]
[1755322619797,4.656,4430.7,4430.6,1.2131]
[1755322619993,0.5845,4430.4,4430.3,1.0373]
[1755322620195,0.6105,4429.8,4429.7,0.6133]
[1755322620494,0.5845,4429.8,4429.4,0.3686]
[1755322620797,1.4482,4429.5,4429.4,1.2131]
[1755322620994,1.4482,4429.5,4429.4,22.0504]
[1755322621389,1.4482,4429.5,4429.4,21.8031]
[1755322621796,1.4482,4429.5,4429.4,22.0504]
[1755322621797,0.5921,4429.5,4429.4,22.0504]
[1755322622293,0.5921,4429.5,4429.4,1.4604]
[1755322622597,1.4482,4429.5,4429.4,22.0504]
[1755322622891,0.5921,4429.5,4429.4,22.0504]
[1755322623097,1.4482,4429.5,4429.4,22.0504]
[1755322623598,0.5921,4429.5,4429.4,22.0504]
[1755322623800,0.1626,4429.5,4429.4,22.0504]
[1755322624497,1.4482,4429.5,4429.4,22.0504]
[1755322625296,1.4482,4429.5,4429.4,21.6273]
[1755322625497,1.4482,4429.5,4429.4,21.8031]
[1755322625802,1.4482,4429.5,4429.4,22.0504]
[1755322626203,1.4482,4429.5,4429.4,21.0057]
[1755322626397,1.4482,4429.5,4428.6,3.2078]
[1755322626398,0.5845,4429.5,4429.0,20.58]
[1755322626601,0.4188,4428.8,4428.6,3.4608]
[1755322626798,0.5018,4429.7,4429.0,1.2157]
[1755322627001,0.2562,4429.7,4429.5,2.90959383]
[1755322627202,3.5437,4430.4,4430.3,0.3468]
[1755322627406,4.42938615,4430.4,4430.3,1.4604]
[1755322627701,3.2078,4430.4,4430.3,1.4604]
[1755322628101,3.2078,4430.9,4430.4,0.6216]
[1755322628303,3.7923,4430.9,4430.8,1.0373]
[1755322628605,4.41918116,4430.9,4430.8,0.4157]
[1755322628805,0.2562,4430.6,4430.2,22.0594]
[1755322629002,0.2562,4430.6,4430.3,0.8689]
[1755322629203,0.5921,4430.6,4430.5,0.5915]
[1755322629402,0.5921,4430.6,4430.5,1.4604]
[1755322629699,0.2562,4430.8,4430.5,0.5915]
[1755322629904,3.2078,4430.9,4430.8,1.4604]
[1755322630098,3.2078,4430.9,4430.8,22.0724]
[1755322630295,3.2078,4431.4,4430.9,0.45101]
[1755322630495,3.2078,4431.4,4431.3,1.4604]
[1755322630697,3.2078,4431.4,4431.3,23.52059383]
[1755322630895,3.2078,4431.4,4431.3,22.0714]
[1755322631096,4.656,4431.4,4431.3,22.0724]
[1755322631299,4.656,4431.4,4431.3,1.4604]
[1755322631497,0.8637,4431.3,4430.6,0.253]
[1755322631701,1.4482,4430.8,4430.7,21.0307]
[1755322631900,1.4482,4430.8,4430.7,21.8281]
[1755322632509,1.4482,4430.8,4430.7,1.4604]
[1755322632807,1.4482,4430.8,4430.7,1.2131]
[1755322633013,1.4482,4430.8,4430.7,21.8311]
[1755322636409,0.9464,4430.8,4430.7,21.2045]
[1755322636612,0.5845,4430.8,4430.7,22.0734]
[1755322636812,0.3359,4430.8,4430.7,22.0734]
[1755322637110,1.0863,4431.1,4431.0,1.4604]
[1755322637309,2.07684216,4431.1,4431.0,1.4604]
[1755322637509,2.07684216,4431.1,4431.0,22.0694]
[1755322637910,2.07684216,4431.1,4431.0,21.4535]
[1755322638109,2.07684216,4431.1,4431.0,21.2005]
[1755322638512,1.4482,4431.1,4431.0,21.2005]
[1755322639216,1.4482,4431.1,4431.0,21.8261]
[1755322639510,1.4482,4431.1,4431.0,1.2171]
[1755322639714,0.8407,4431.1,4431.0,21.8191]
[1755322640013,0.8407,4431.1,4431.0,22.0708]